bitfinex/quotes_ETHUSD_20240917
["timestamp","ask_amount","ask_price","bid_price","bid_amount"]
[1726557279519,8.3680996,2306.9,2306.7,3.37665186]
[1726557279731,8.3680996,2306.9,2306.8,1.3506238]
[1726557279948,8.3680996,2306.9,2306.6,0.90857062]
[1726557280155,8.3680996,2306.9,2306.7,3.37671371]
[1726557280447,8.3680996,2306.9,2306.6,0.90857062]
[1726557280650,8.3680996,2306.9,2306.7,3.37671511]
[1726557280850,4.0332796,2306.9,2306.6,0.90857062]
[1726557281149,2.4711,2306.9,2306.7,3.37642698]
[1726557281346,2.4711,2306.9,2306.8,1.35064268]
[1726557282224,2.55369937,2306.9,2306.8,1.35064268]
[1726557282914,2.55369937,2306.9,2306.8,1.35063983]
[1726557284856,2.55369937,2306.9,2306.6,1.80113555]
[1726557285170,2.55369937,2306.9,2306.7,3.37702372]
[1726557285358,2.55369937,2306.9,2306.8,1.35080949]
[1726557286125,4.11587897,2306.9,2306.8,1.35080949]
[1726557289445,0.08259937,2306.9,2306.8,3.37769586]
[1726557289652,0.08259937,2306.9,2306.8,4.60356538]
[1726557289865,8.1774396,2307.1,2306.8,4.60356538]
[1726557290067,0.08242736,2306.9,2306.7,0.90857062]
[1726557290365,12.5119896,2307.1,2306.8,3.37829911]
[1726557290582,12.5119896,2307.1,2306.7,0.90857062]
[1726557290862,12.5119896,2307.1,2306.8,3.37836683]
[1726557291062,12.5119896,2307.1,2306.7,0.90857062]
[1726557291265,12.5119896,2307.1,2306.8,3.37857093]
[1726557291556,12.5119896,2307.1,2306.7,0.90857062]
[1726557291761,12.5119896,2307.1,2306.8,3.37857561]
[1726557291949,12.5119896,2307.1,2306.7,0.90857062]
[1726557292266,12.5119896,2307.1,2306.8,3.3785784]
[1726557292441,12.5119896,2307.1,2306.7,0.90857062]
[1726557292629,12.5119896,2307.1,2306.8,3.37876392]
[1726557292958,12.5119896,2307.1,2306.7,0.90857062]
[1726557293262,12.5119896,2307.1,2306.8,3.37883363]
[1726557293465,12.5119896,2307.1,2306.7,0.90857062]
[1726557293666,12.5119896,2307.1,2306.8,3.37891725]
[1726557293866,12.5119896,2307.1,2306.7,0.90857062]
[1726557294073,12.5119896,2307.1,2306.8,3.37891593]
[1726557294246,12.5119896,2307.1,2306.7,0.90857062]
[1726557294446,12.5119896,2307.1,2306.8,3.37888145]
[1726557294655,4.33472,2307.0,2306.7,0.90857062]
[1726557294848,1.5621796,2306.9,2306.8,3.37882326]
[1726557297160,1.64197708,2306.9,2306.8,3.37882326]
[1726557297568,1.64197708,2306.9,2306.8,3.37902453]
[1726557301149,1.64197708,2306.9,2306.8,3.3993896]
[1726557302839,0.07979748,2306.9,2306.8,3.3993896]
[1726557303388,0.07973298,2306.9,2306.8,3.3993896]
[1726557303542,12.5119896,2307.1,2306.8,3.3993896]
[1726557303743,4.33463,2307.0,2306.9,1.35975584]
[1726557303971,4.41442287,2307.0,2306.9,1.35975584]
[1726557305383,0.07979287,2307.0,2306.9,1.35975584]
[1726557305881,0.07979287,2307.0,2306.9,1.36002564]
[1726557306593,6.78922287,2307.0,2306.9,1.36002564]
[1726557306751,6.71037,2306.5,2306.4,0.90857062]
[1726557306953,4.33584,2306.4,2306.2,0.90857062]
[1726557307155,1.5621796,2306.3,2306.1,0.90857062]
[1726557307494,1.64155891,2306.3,2305.9,5.24514062]
[1726557307791,1.64155891,2306.3,2306.0,3.99815463]
[1726557307942,1.64155891,2306.3,2306.1,1.35289512]
[1726557308139,1.64155891,2306.3,2306.0,3.96248745]
[1726557308438,1.64155891,2306.3,2306.1,3.38104214]
[1726557308677,1.64155891,2306.3,2306.1,1.16800996]
[1726557311651,0.07937931,2306.3,2306.1,1.16800996]
[1726557312086,5.8977496,2306.5,2306.1,1.16800996]
[1726557312287,0.07896992,2306.2,2306.1,1.16800996]
[1726557312453,5.8977496,2306.5,2306.1,1.16800996]
[1726557312656,5.8977496,2306.5,2306.0,7.39037683]
[1726557312657,0.07896992,2306.2,2306.0,7.39037683]
[1726557312970,0.07890999,2306.1,2306.0,7.39037683]
[1726557313181,5.8977496,2306.5,2306.0,8.74155469]
[1726557313348,0.07890999,2306.1,2306.0,7.39037683]
[1726557313547,5.8977496,2306.5,2306.0,7.39037683]
[1726557313776,0.07890999,2306.1,2306.0,7.39037683]
[1726557313957,5.8977496,2306.5,2306.0,7.39037683]
[1726557314287,0.07890999,2306.1,2306.0,3.05391683]
[1726557314455,5.8977496,2306.5,2306.0,2.438]
[1726557314651,0.07890999,2306.1,2306.0,2.438]
[1726557314853,5.8977496,2306.5,2306.0,2.438]
[1726557315053,0.07890999,2306.1,2306.0,2.438]
[1726557315256,5.8977496,2306.5,2306.0,2.438]
[1726557315585,5.8977496,2306.5,2306.0,3.63997106]
[1726557315772,0.07910015,2306.4,2306.0,3.63997106]
[1726557316653,0.07910015,2306.4,2306.3,4.33594]
[1726557316857,0.07910015,2306.4,2306.3,11.00398]
[1726557317173,7.47,2306.7,2306.6,2.3321]
[1726557317484,6.78944,2307.0,2306.6,2.3321]
[1726557319290,5.8967496,2307.1,2306.6,2.3321]
[1726557320479,2.3835,2307.2,2306.7,4.33518]
[1726557320796,2.3835,2307.2,2306.7,5.001933]
[1726557320797,3.9456796,2307.2,2306.7,5.001933]
[1726557321386,4.33446,2307.1,2306.7,0.666753]
[1726557321698,1.5621796,2307.0,2306.6,2.3321]
[1726557321891,1.5621796,2307.0,2306.6,6.66745]
[1726557322893,3.9456796,2307.2,2306.6,6.66745]
[1726557323095,8.2800496,2307.2,2306.7,1.100288]
[1726557323696,4.33445,2307.1,2306.7,1.100288]
[1726557325992,8.669,2307.1,2306.7,1.100288]
[1726557326201,1.5621796,2307.0,2306.6,2.3321]
[1726557326994,0.07841581,2306.9,2306.6,2.3321]
[1726557327305,0.07841581,2306.9,2306.6,6.66745]
[1726557330595,4.33445,2307.1,2306.6,6.66745]
[1726557330786,0.07842853,2307.0,2306.7,1.100288]
[1726557331178,0.07842853,2307.0,2306.8,2.4381]
[1726557331401,4.78809497,2307.3,2306.8,2.4381]
[1726557331605,0.07857326,2307.2,2306.8,2.4381]
[1726557331782,9.12226497,2307.3,2306.8,3.23411452]
[1726557332115,0.07857326,2307.2,2306.8,3.23411452]
[1726557332502,4.33425,2307.2,2306.8,3.23411452]
[1726557332682,0.07848978,2307.1,2306.8,3.23411452]
[1726557332910,0.07848978,2307.1,2306.9,5.09159745]
[1726557333082,0.45393497,2307.3,2306.9,0.75691745]
[1726557333429,9.8635,2307.6,2307.1,4.33437]
[1726557333579,0.07818522,2307.5,2307.2,2.2943]
[1726557333924,0.07818522,2307.5,2307.3,6.62835]
[1726557334279,4.3715208,2307.8,2307.3,6.62835]
[1726557334480,0.0784442,2307.4,2307.3,6.62835]
[1726557334679,4.3715208,2307.8,2307.3,6.62835]
[1726557334924,0.07851626,2307.4,2307.3,6.62835]
[1726557335079,4.3715208,2307.8,2307.3,7.94712166]
[1726557335284,0.07850397,2307.4,2307.3,6.62835]
[1726557335482,0.0383708,2307.8,2307.3,6.62835]
[1726557335682,0.0383708,2307.8,2307.4,0.73778937]
[1726557335924,0.0383708,2307.8,2307.5,2.3964]
[1726557341995,0.0793024,2307.7,2307.5,2.3964]
[1726557342221,0.0383708,2307.8,2307.5,2.3964]
[1726557342426,0.0793024,2307.7,2307.5,2.3964]
[1726557342630,0.0383708,2307.8,2307.6,0.48076511]
[1726557342869,0.07790573,2307.7,2307.6,0.48076511]
[1726557343212,0.0383708,2307.8,2307.6,0.48076511]
[1726557343538,0.07790573,2307.7,2307.6,0.48076511]
[1726557343740,0.07790573,2307.7,2307.5,2.3964]
[1726557343940,0.0383708,2307.8,2307.5,2.3964]
[1726557344398,0.07790573,2307.7,2307.5,2.3964]
[1726557344605,0.0383708,2307.8,2307.5,2.3964]
[1726557344828,0.07790573,2307.7,2307.5,2.3964]
[1726557345034,1.6005504,2307.8,2307.4,4.33384]
[1726557345220,0.07812743,2307.7,2307.4,4.84101394]
[1726557345414,1.6005504,2307.8,2307.4,4.33384]
[1726557345605,0.07812743,2307.7,2307.4,4.33384]
[1726557345815,1.6005504,2307.8,2307.4,4.33384]
[1726557346146,0.07812743,2307.7,2307.4,4.33384]
[1726557346656,1.6005504,2307.8,2307.4,4.33384]
[1726557346657,0.07806756,2307.6,2307.4,4.33384]
[1726557346859,1.6005504,2307.8,2307.4,4.33384]
[1726557347155,0.07812743,2307.7,2307.4,4.33384]
[1726557347669,1.6005504,2307.8,2307.5,6.66709]
[1726557347670,0.07806756,2307.6,2307.5,6.66709]
[1726557347954,0.0383708,2307.8,2307.6,4.33338]
[1726557348126,0.07803546,2307.6,2307.5,11.00078]
[1726557348327,0.0383708,2307.8,2307.5,11.00078]
[1726557348328,0.0383708,2307.8,2307.7,6.76171]
[1726557351162,0.0383708,2307.8,2307.7,11.09502]
[1726557355828,0.0383708,2307.8,2307.7,6.76171]
[1726557356032,0.0383708,2307.8,2307.7,7.871237]
[1726557357056,0.11667487,2307.8,2307.7,7.871237]
[1726557359134,14.15182,2308.3,2308.2,8.66476]
[1726557359135,7.47,2308.3,2308.2,8.66476]
[1726557359335,0.0383708,2308.5,2308.2,8.66476]
[1726557359336,0.0383708,2308.5,2308.3,2.4774]
[1726557359934,0.0383708,2308.5,2308.3,6.80959]
[1726557360400,0.0383708,2308.5,2308.3,2.4774]
[1726557360582,0.0383708,2308.5,2308.4,4.332]
[1726557361651,0.0383708,2308.5,2308.4,12.75394571]
[1726557362000,0.0383708,2308.5,2308.4,15.88513411]
[1726557362155,7.47,2308.9,2308.8,12.99375]
[1726557362355,0.0383708,2309.2,2309.0,0.55]
[1726557362666,0.0383708,2309.2,2309.0,2.19877923]
[1726557362984,7.2784683,2309.5,2309.4,4.33012]
[1726557363302,0.0383708,2309.9,2309.4,4.33012]
[1726557363303,0.0383708,2309.9,2309.7,4.32954]
[1726557363502,0.0383708,2309.9,2309.5,4.87989]
[1726557363686,0.0383708,2309.9,2309.6,0.814615]
[1726557363868,0.0383708,2309.9,2309.6,5.144355]
[1726557364400,0.0383708,2309.9,2309.7,4.32955]
[1726557365430,0.0383708,2309.9,2309.5,4.87977]
[1726557365572,0.0383708,2309.9,2309.5,0.55]
[1726557365868,0.0383708,2309.9,2309.5,1.797655]
[1726557366889,0.06787652,2309.8,2309.5,1.247655]
[1726557373457,0.06787652,2309.8,2309.4,2.4002]
[1726557374655,7.77450783,2309.8,2309.1,6.62932]
[1726557374860,1.02537786,2309.7,2309.1,6.62932]
[1726557375174,2.3866,2309.5,2308.9,4.33097]
[1726557375375,2.3866,2309.5,2308.7,6.8113]
[1726557375592,3.44524201,2309.4,2308.8,0.68113]
[1726557375780,2.47,2309.3,2308.7,4.3313]
[1726557376073,0.06798694,2309.2,2308.7,5.197601]
[1726557378429,4.33071,2309.1,2308.5,4.33171]
[1726557378591,3.44509825,2309.2,2308.5,4.33164]
[1726557378926,0.06800174,2309.1,2308.5,4.33164]
[1726557379290,0.06800174,2309.1,2308.5,8.66332]
[1726557379489,0.06800174,2309.1,2308.6,1.114332]
[1726557379718,11.1308,2309.3,2308.6,5.445952]
[1726557379882,0.06570102,2309.0,2308.6,5.445952]
[1726557380087,11.1308,2309.3,2308.6,5.445952]
[1726557380284,0.06572662,2309.2,2308.6,5.445952]
[1726557380594,0.06572662,2309.2,2308.7,4.33143]
[1726557381001,0.06572662,2309.2,2308.7,4.3313]
[1726557381220,0.06572662,2309.2,2308.9,4.33106]
[1726557381400,0.06572662,2309.2,2309.1,4.33069]
[1726557381599,2.82799386,2309.6,2309.1,4.33069]
[1726557381600,2.3744,2309.6,2309.2,4.33039]
[1726557381799,2.2942708,2309.9,2309.3,7.691578]
[1726557382042,2.2942708,2309.9,2309.3,6.91205965]
[1726557382188,2.2942708,2309.9,2309.5,4.32993]
[1726557382391,0.68659816,2309.9,2309.5,4.32993]
[1726557382623,0.68659816,2309.9,2309.5,5.44547]
[1726557384906,0.68659816,2309.9,2309.5,1.11554]
[1726557385811,0.68659816,2309.9,2309.1,4.3306]
[1726557385812,5.01590816,2309.9,2309.1,4.3306]
[1726557386010,5.01590816,2309.9,2309.1,4.41719781]
[1726557386608,0.68659816,2309.9,2309.3,4.33012]
[1726557386810,0.68659816,2309.9,2309.5,4.32991]
[1726557387011,4.32888,2310.1,2309.5,4.32991]
[1726557387012,6.79228,2310.1,2309.5,4.32991]
[1726557387252,2.4634,2310.1,2309.6,0.716691]
[1726557387551,0.06560015,2310.0,2309.6,0.716691]
[1726557388121,0.06560015,2310.0,2309.4,7.16712]
[1726557388854,0.06560015,2310.0,2309.5,4.32992]
[1726557389662,0.06560015,2310.0,2309.6,4.32974]
[1726557390613,0.06560015,2310.0,2309.7,4.32953]
[1726557393564,0.06560015,2310.0,2309.7,4.32945]
[1726557396366,0.06560015,2310.0,2309.5,4.32984]
[1726557397955,0.06560015,2310.0,2309.6,4.32973]
[1726557399768,0.06560015,2310.0,2309.5,4.32984]
[1726557401269,0.06560015,2310.0,2309.5,5.046524]
[1726557402637,0.06560015,2310.0,2309.5,0.716684]
[1726557402835,0.06560015,2310.0,2309.4,7.16712]
[1726557403136,0.06560015,2310.0,2309.5,3.33997132]
[1726557403364,0.06560015,2310.0,2309.6,1.33710639]
[1726557403571,2.4855,2309.9,2309.3,4.33029]
[1726557403773,2.4855,2309.9,2309.4,1.33748915]
[1726557404083,0.06610197,2309.8,2309.3,4.33029]
[1726557404490,0.06610197,2309.8,2309.4,3.3472634]
[1726557404670,0.06610197,2309.8,2309.3,5.23886062]
[1726557404987,0.06610197,2309.8,2309.4,3.3475693]
[1726557405199,6.73389,2309.7,2309.3,0.90857062]
[1726557405338,5.78141131,2309.6,2309.2,0.90857062]
[1726557405681,5.78141131,2309.6,2309.3,1.34027674]
[1726557405682,3.44316683,2309.6,2309.3,1.34027674]
[1726557405992,2.2993,2309.3,2309.0,0.90857062]
[1726557406143,2.2993,2309.3,2308.8,0.90857062]
[1726557406144,2.2993,2309.1,2308.8,0.90857062]
[1726557406345,2.2993,2309.1,2308.7,0.90857062]
[1726557406641,2.2901,2308.9,2308.6,0.90857062]
[1726557406861,2.35560815,2308.8,2308.4,0.91689702]
[1726557407057,11.07035141,2308.8,2308.4,0.0083264]
[1726557407302,3.37711131,2308.6,2308.4,0.0083264]
[1726557407500,2.51291474,2308.5,2308.4,0.0083264]
[1726557409160,0.06431474,2308.5,2308.4,0.0083264]
[1726557409364,0.06431474,2308.5,2308.4,0.45078314]
[1726557409586,2.2711,2308.8,2308.4,0.45078314]
[1726557410200,0.06467788,2308.7,2308.4,0.45078314]
[1726557410497,2.2711,2308.8,2308.4,0.45078314]
[1726557410704,0.06467788,2308.7,2308.4,0.45078314]
[1726557410886,2.2711,2308.8,2308.5,0.47803831]
[1726557411086,0.06467788,2308.7,2308.4,0.0083264]
[1726557411287,2.2711,2308.8,2308.4,0.0083264]
[1726557411609,0.06467788,2308.7,2308.4,0.0083264]
[1726557412048,2.2711,2308.8,2308.4,0.0083264]
[1726557412460,0.06389937,2308.7,2308.4,0.0083264]
[1726557412666,2.2711,2308.8,2308.4,0.0083264]
[1726557412890,0.06389937,2308.7,2308.4,0.0083264]
[1726557413093,2.2711,2308.8,2308.4,0.0083264]
[1726557413277,0.06449842,2308.7,2308.4,0.0083264]
[1726557413496,6.60235,2308.8,2308.4,0.0083264]
[1726557413809,0.06449842,2308.7,2308.4,0.0083264]
[1726557414207,6.60235,2308.8,2308.4,0.0083264]
[1726557414416,0.06443863,2308.6,2308.4,0.0083264]
[1726557414625,6.60235,2308.8,2308.4,0.0083264]
[1726557415101,0.06389937,2308.7,2308.4,0.0083264]
[1726557415414,2.2711,2308.8,2308.4,0.0083264]
[1726557415914,0.06449842,2308.7,2308.4,0.0083264]
[1726557416121,2.2711,2308.8,2308.4,0.0083264]
[1726557416293,0.06449842,2308.7,2308.4,0.0083264]
[1726557416615,6.60236,2308.8,2308.4,0.0083264]
[1726557416819,0.06443863,2308.6,2308.4,0.0083264]
[1726557416987,6.60236,2308.8,2308.4,0.0083264]
[1726557417194,0.06437884,2308.5,2308.4,0.0083264]
[1726557417395,6.60236,2308.8,2308.4,0.0083264]
[1726557417608,0.06437884,2308.5,2308.4,0.0083264]
[1726557417810,6.60236,2308.8,2308.4,0.0083264]
[1726557417997,0.06437884,2308.5,2308.4,0.0083264]
[1726557418206,2.2711,2308.8,2308.4,0.0083264]
[1726557418678,0.06449842,2308.7,2308.4,0.0083264]
[1726557418879,2.2711,2308.8,2308.4,0.0083264]
[1726557419104,0.06393336,2308.7,2308.4,0.0083264]
[1726557419308,2.2711,2308.8,2308.4,0.0083264]
[1726557419506,0.06400403,2308.7,2308.4,0.0083264]
[1726557419679,2.2711,2308.8,2308.4,0.0083264]
[1726557419895,0.06393336,2308.7,2308.4,0.0083264]
[1726557420105,2.2711,2308.8,2308.4,0.0083264]
[1726557420317,0.06395692,2308.7,2308.4,0.0083264]
[1726557420477,2.2711,2308.8,2308.4,0.0083264]
[1726557420829,0.06395692,2308.7,2308.4,0.0083264]
[1726557421216,2.2711,2308.8,2308.4,0.0083264]
[1726557421379,0.06440209,2308.6,2308.4,1.31670789]
[1726557421582,3.0,2309.0,2308.4,1.31670789]
[1726557422221,0.06453706,2308.9,2308.4,1.31670789]
[1726557422889,0.06453706,2308.9,2308.5,3.39924479]
[1726557423221,0.45365331,2309.2,2308.8,4.33125]
[1726557423537,15.81711131,2309.6,2308.9,2.3808]
[1726557423538,6.80255,2309.6,2308.9,2.3808]
[1726557423730,7.2561209,2309.6,2309.0,0.671194]
[1726557424830,4.32994,2309.5,2309.0,0.671194]
[1726557425694,3.37711131,2309.4,2308.7,2.4345]
[1726557426035,3.37711131,2309.4,2308.7,6.76584]
[1726557426188,7.70726131,2309.4,2308.8,1.109733]
[1726557426698,6.67343,2309.3,2308.8,1.109733]
[1726557427036,2.3431,2309.3,2308.8,1.109733]
[1726557428244,5.80311131,2309.6,2308.8,1.109733]
[1726557428537,4.32995,2309.5,2308.9,0.3544233]
[1726557429204,8.66001,2309.5,2308.9,0.3544233]
[1726557429394,4.32995,2309.5,2308.9,0.3544233]
[1726557429818,4.33018,2309.4,2308.9,0.3544233]
[1726557430002,4.33018,2309.4,2308.7,6.76577]
[1726557430305,7.70729131,2309.4,2308.7,6.76577]
[1726557431119,2.3777,2309.2,2308.7,2.4345]
[1726557431811,2.3777,2309.2,2308.7,6.76593]
[1726557432137,0.06090006,2309.1,2308.8,0.676593]
[1726557435317,0.06090006,2309.1,2308.8,5.09435809]
[1726557435523,4.32995,2309.5,2308.9,2.4625]
[1726557435723,4.32995,2309.5,2309.0,0.75568581]
[1726557435724,0.05887946,2309.4,2309.0,0.75568581]
[1726557441044,3.43599077,2309.4,2308.9,2.4625]
[1726557441268,0.05887946,2309.4,2308.9,2.4625]
[1726557442845,0.05887946,2309.4,2308.9,2.54910719]
[1726557443236,7.70696131,2309.6,2308.9,6.88015719]
[1726557443536,7.70696131,2309.6,2309.0,1.12113472]
[1726557443737,4.38652405,2309.5,2309.0,1.12113472]
[1726557444235,4.38652405,2309.5,2309.1,4.33065]
[1726557444236,0.05655405,2309.5,2309.1,4.33065]
[1726557444440,0.05655405,2309.5,2309.0,11.0454]
[1726557444673,6.79168,2309.7,2309.1,4.33066]
[1726557444871,0.05457121,2309.4,2309.1,5.435191]
[1726557445180,0.05453498,2309.3,2309.1,5.435191]
[1726557445537,6.79168,2309.7,2309.2,4.3305]
[1726557445538,2.462,2309.7,2309.2,4.3305]
[1726557445747,14.98495961,2309.8,2309.3,2.4784]
[1726557445748,0.05471423,2309.6,2309.3,2.4784]
[1726557445969,14.98495961,2309.8,2309.3,2.4784]
[1726557446283,0.05282385,2309.5,2309.3,2.4784]
[1726557446493,10.65557961,2309.8,2309.3,3.28078841]
[1726557446494,7.2784683,2309.8,2309.3,3.28078841]
[1726557446660,0.0527641,2309.4,2309.3,3.28078841]
[1726557446858,7.2784683,2309.8,2309.3,3.28078841]
[1726557447371,0.05291981,2309.7,2309.3,3.28078841]
[1726557447855,6.82108,2309.9,2309.4,0.88262725]
[1726557448060,0.0528836,2309.6,2309.4,0.88262725]
[1726557448293,6.82108,2309.9,2309.4,0.88262725]
[1726557448294,0.0529352,2309.5,2309.4,0.88262725]
[1726557448520,6.82108,2309.9,2309.4,0.88262725]
[1726557448675,0.0530909,2309.8,2309.4,0.88262725]
[1726557449387,0.0530909,2309.8,2309.3,6.8087]
[1726557451284,0.0530909,2309.8,2309.4,4.33011]
[1726557451484,0.0530909,2309.8,2309.3,6.89527585]
[1726557452009,0.0530909,2309.8,2309.4,4.32998]
[1726557452212,0.0530909,2309.8,2309.6,2.3985]
[1726557452528,0.05316951,2309.7,2309.6,2.3985]
[1726557452722,6.69373,2310.1,2309.6,2.3985]
[1726557452886,0.0533487,2310.0,2309.6,3.57327776]
[1726557457581,0.0533487,2310.0,2309.6,7.90300776]
[1726557457866,0.0533487,2310.0,2309.6,3.57327776]
[1726557460984,0.0533487,2310.0,2309.6,2.3985]
[1726557461874,0.0533487,2310.0,2309.5,4.32981]
[1726557463180,4.3825187,2310.0,2309.4,6.71348]
[1726557463689,4.3292,2309.9,2309.4,2.3835]
[1726557463836,4.3292,2309.9,2309.4,3.17638141]
[1726557464042,0.05040255,2309.8,2309.4,3.17638141]
[1726557467287,6.71236,2309.7,2309.4,2.3835]
[1726557467648,0.05041533,2309.6,2309.4,2.3835]
[1726557469985,4.32947,2309.8,2309.4,2.3835]
[1726557470147,0.05024183,2309.5,2309.4,2.3835]
[1726557470349,4.32947,2309.8,2309.4,2.3835]
[1726557470542,0.05036132,2309.7,2309.4,2.3835]
[1726557470810,4.32947,2309.8,2309.4,2.3835]
[1726557471046,0.05030158,2309.6,2309.4,2.3835]
[1726557471243,4.32956,2309.7,2309.4,2.3835]
[1726557471573,8.65896,2309.8,2309.4,2.3835]
[1726557471779,4.3801054,2309.7,2309.4,2.3835]
[1726557472381,0.0504554,2309.7,2309.4,2.3835]
[1726557472756,8.659,2309.8,2309.4,2.3835]
[1726557472946,4.3800154,2309.7,2309.4,2.3835]
[1726557475894,0.0504554,2309.7,2309.4,2.3835]
[1726557476198,4.32959,2309.7,2309.4,2.3835]
[1726557476487,0.0503574,2309.6,2309.4,2.74334841]
[1726557476650,0.0503574,2309.6,2309.4,2.3835]
[1726557476850,4.32963,2309.7,2309.4,2.3835]
[1726557477099,0.05039847,2309.5,2309.4,2.3835]
[1726557477591,4.32963,2309.7,2309.4,2.3835]
[1726557477968,0.05052858,2309.6,2309.4,2.3835]
[1726557478678,8.65897,2309.8,2309.4,2.3835]
[1726557478868,0.05046189,2309.5,2309.4,2.3835]
[1726557479067,8.65897,2309.8,2309.4,2.3835]
[1726557479599,0.05059515,2309.7,2309.4,2.3835]
[1726557479973,8.65897,2309.8,2309.4,2.3835]
[1726557480179,0.05059515,2309.7,2309.4,2.3835]
[1726557480380,8.65897,2309.8,2309.4,2.3835]
[1726557480588,0.05059515,2309.7,2309.4,2.3835]
[1726557481088,8.65896,2309.8,2309.4,2.3835]
[1726557481303,0.05055629,2309.6,2309.4,2.3835]
[1726557481608,0.05049656,2309.5,2309.4,3.14575106]
[1726557481773,4.38043656,2309.5,2309.2,0.90857062]
[1726557482107,4.33021,2309.4,2309.1,2.4482]
[1726557482477,0.05036316,2309.3,2309.1,2.4482]
[1726557482867,4.33051,2309.2,2308.9,0.90857062]
[1726557483206,0.05019494,2309.1,2309.0,1.34285524]
[1726557483570,12.69206438,2309.3,2309.0,1.34285524]
[1726557483903,0.05019902,2309.2,2308.8,4.63097184]
[1726557484064,0.05019902,2309.2,2308.9,3.35739578]
[1726557484269,11.13262,2309.3,2309.0,3.35739423]
[1726557484463,0.0500105,2309.1,2308.9,0.90857062]
[1726557484776,4.3307,2309.1,2308.8,3.40297062]
[1726557484983,4.3307,2309.1,2308.9,3.35775816]
[1726557485166,4.3307,2309.1,2308.8,3.40297062]
[1726557485368,4.3307,2309.1,2308.7,1.3669487]
[1726557485369,4.3307,2309.1,2308.9,1.34318722]
[1726557485566,4.3307,2309.1,2308.7,0.90857062]
[1726557485873,4.33106,2308.9,2308.8,4.26654952]
[1726557486018,4.33106,2308.9,2308.8,3.3579789]
[1726557486218,4.33106,2308.9,2308.6,0.90857062]
[1726557486381,4.33106,2308.9,2308.7,3.35884766]
[1726557486580,4.33136,2308.8,2308.5,3.24127062]
[1726557486795,4.33136,2308.8,2308.6,4.267056]
[1726557487027,4.33136,2308.8,2308.7,3.35848538]
[1726557487229,4.3311,2308.9,2308.7,3.35848538]
[1726557487386,4.3311,2308.9,2308.6,0.90857062]
[1726557487585,4.3311,2308.9,2308.7,3.35769075]
[1726557487783,4.33125,2308.8,2308.5,0.90857062]
[1726557488024,4.33125,2308.8,2308.6,1.34329204]
[1726557488025,3.37891871,2308.7,2308.6,1.34329204]
[1726557488229,4.33173,2308.6,2308.3,5.23817062]
[1726557488383,4.33195,2308.5,2308.4,1.34371932]
[1726557488586,4.332,2308.4,2308.3,4.3296]
[1726557489091,8.664,2308.4,2308.3,4.3296]
[1726557491933,12.18889187,2308.4,2308.3,4.3296]
[1726557492151,12.23758765,2308.4,2308.3,4.3296]
[1726557493645,15.23758765,2308.4,2308.3,4.3296]
[1726557494503,19.56958765,2308.4,2308.3,4.3296]
[1726557495137,15.23758765,2308.4,2308.3,4.3296]
[1726557495628,4.38069578,2308.4,2308.3,4.3296]
[1726557495859,0.04869578,2308.4,2308.3,4.3296]
[1726557495996,0.04869578,2308.4,2308.3,4.41623268]
[1726557496196,4.3313,2308.8,2308.3,4.41623268]
[1726557496402,0.043017,2308.7,2308.3,4.3296]
[1726557496699,0.04298074,2308.6,2308.4,0.68175]
[1726557498001,4.3313,2308.8,2308.4,0.68175]
[1726557498318,0.04296988,2308.7,2308.4,0.68175]
[1726557498699,4.3313,2308.8,2308.4,0.68175]
[1726557498940,0.04293362,2308.6,2308.4,0.68175]
[1726557499149,3.37891871,2309.1,2308.5,0.501135]
[1726557499301,4.331,2309.0,2308.6,2.275]
[1726557500205,4.331,2309.0,2308.6,2.5526135]
[1726557501545,4.33097,2309.0,2308.6,0.2776135]
[1726557501747,4.33125,2308.8,2308.5,0.501135]
[1726557504987,4.33145,2308.7,2308.4,2.3278]
[1726557505855,4.33145,2308.7,2308.3,6.7384]
[1726557506062,4.33164,2308.6,2308.3,6.7384]
[1726557507083,0.04313203,2308.5,2308.3,6.7384]
[1726557507293,0.04313203,2308.5,2308.3,7.41438916]
[1726557512874,8.66305,2308.7,2308.3,7.41438916]
[1726557513072,0.04309577,2308.4,2308.3,7.41438916]
[1726557513301,8.66305,2308.7,2308.3,6.7384]
[1726557513496,0.04309577,2308.4,2308.3,6.7384]
[1726557513697,4.33163,2308.6,2308.3,6.7384]
[1726557514210,0.04315559,2308.5,2308.3,6.7384]
[1726557516064,0.04315559,2308.5,2308.3,4.3296]
[1726557516850,4.37497559,2308.5,2308.3,4.3296]
[1726557518425,4.332,2308.4,2308.3,4.3296]
[1726557518621,9.80231275,2308.4,2308.3,4.3296]
[1726557518837,12.16861275,2308.4,2308.3,4.3296]
[1726557519439,16.50061275,2308.4,2308.3,4.3296]
[1726557521422,19.50061275,2308.4,2308.3,4.3296]
[1726557524056,15.16861275,2308.4,2308.3,4.3296]
[1726557526972,12.16861275,2308.4,2308.3,4.3296]
[1726557527282,11.07211519,2308.4,2308.3,4.3296]
[1726557532475,15.40411519,2308.4,2308.3,4.3296]
[1726557532677,11.07211519,2308.4,2308.3,4.3296]
[1726557543885,8.70581519,2308.4,2308.3,4.3296]
[1726557552038,10.2668478,2308.4,2308.3,4.3296]
[1726557552742,11.97208958,2308.4,2308.3,4.3296]
[1726557556437,10.2668478,2308.4,2308.3,4.3296]
[1726557557571,10.2668478,2308.4,2308.3,6.6862]
[1726557558067,8.70581519,2308.4,2308.3,6.6862]
[1726557558280,10.2668478,2308.4,2308.3,6.6862]
[1726557559429,8.70581519,2308.4,2308.3,6.6862]
[1726557562781,10.2668478,2308.4,2308.3,4.3296]
[1726557563115,11.29353258,2308.4,2308.3,4.3296]
[1726557565367,10.2668478,2308.4,2308.3,4.3296]
[1726557565717,8.70581519,2308.4,2308.3,4.3296]
[1726557567484,0.04181519,2308.4,2308.3,10.15821256]
[1726557567623,0.04181519,2308.4,2308.3,11.06678318]
[1726557567818,8.66354,2308.6,2308.3,12.49456536]
[1726557568030,8.66354,2308.6,2308.4,3.36471256]
[1726557568031,4.37019365,2308.5,2308.4,3.36471256]
[1726557568232,4.37019365,2308.5,2308.4,1.34588502]
[1726557568778,4.37019365,2308.5,2308.4,3.36426462]
[1726557569068,4.37019365,2308.5,2308.4,2.59529676]
[1726557569222,4.37019365,2308.5,2308.4,1.24941174]
[1726557570669,4.37019365,2308.5,2308.3,6.7935]
[1726557570822,5.93122626,2308.5,2308.3,6.7935]
[1726557572522,5.93122626,2308.5,2308.3,4.3296]
[1726557572523,4.332,2308.4,2308.3,4.3296]